[Event "Live Chess"]
[Site "Chess.com"]
[Date "2023.05.21"]
[Round "-"]
[White "Conradical12"]
[Black "Tilbs_12"]
[Result "1-0"]
[WhiteElo "1579"]
[BlackElo "1576"]
[TimeControl "300"]
[EndTime "4:56:34 PDT"]
[Termination "Conradical12 won by resignation"]

1. e4 {[%clk 0:04:57.2]} 1... c6 {[%clk 0:04:59.1]} 2. Nf3 {[%clk 0:04:55.4]}
2... d5 {[%clk 0:04:58.5]} 3. exd5 {[%clk 0:04:54.4]} 3... cxd5 {[%clk 0:04:58]}
4. d4 {[%clk 0:04:53.6]} 4... Nc6 {[%clk 0:04:57.6]} 5. c4 {[%clk 0:04:52.7]}
5... Bg4 {[%clk 0:04:56.5]} 6. Nc3 {[%clk 0:04:52]} 6... Nf6 {[%clk 0:04:55.3]}
7. Be2 {[%clk 0:04:50.9]} 7... dxc4 {[%clk 0:04:53.7]} 8. O-O {[%clk 0:04:50.1]}
8... Bxf3 {[%clk 0:04:26.6]} 9. Bxf3 {[%clk 0:04:47.8]} 9... e6 {[%clk
0:04:19.3]} 10. Qa4 {[%clk 0:04:44.1]} 10... Qb6 {[%clk 0:04:11]} 11. Be3 {[%clk
0:04:41.2]} 11... Qc7 {[%clk 0:03:40.3]} 12. Nb5 {[%clk 0:04:35.1]} 12... Qd7
{[%clk 0:03:35.9]} 13. Bf4 {[%clk 0:04:29.5]} 13... Rc8 {[%clk 0:03:30.9]} 14.
d5 {[%clk 0:04:23.9]} 14... exd5 {[%clk 0:03:27.1]} 15. Rae1+ {[%clk 0:04:22.1]}
15... Be7 {[%clk 0:03:26]} 16. Nd6+ {[%clk 0:04:19.6]} 16... Kd8 {[%clk
0:03:15.8]} 17. Nxc8 {[%clk 0:04:17.9]} 17... Kxc8 {[%clk 0:03:15]} 18. b3
{[%clk 0:04:06.4]} 18... c3 {[%clk 0:03:07]} 19. b4 {[%clk 0:03:57.6]} 19... Re8
{[%clk 0:02:56]} 20. b5 {[%clk 0:03:54.6]} 20... Nb8 {[%clk 0:02:47.8]} 21. Qxa7
{[%clk 0:03:52.6]} 21... Bd6 {[%clk 0:02:45.3]} 22. Rxe8+ {[%clk 0:03:47]} 22...
Nxe8 {[%clk 0:02:43.4]} 23. Bxd6 {[%clk 0:03:46.2]} 23... Qxd6 {[%clk
0:02:42.3]} 24. Re1 {[%clk 0:03:41.8]} 24... Nc7 {[%clk 0:02:40.7]} 25. b6
{[%clk 0:03:37.8]} 25... Nb5 {[%clk 0:02:30.6]} 26. Bg4+ {[%clk 0:03:34.9]}
26... Kd8 {[%clk 0:02:26.6]} 27. Qa4 {[%clk 0:03:26.4]} 27... Qxb6 {[%clk
0:02:11.9]} 28. Qf4 {[%clk 0:03:11.5]} 28... Qc7 {[%clk 0:01:51.8]} 29. Qg5+
{[%clk 0:03:07.2]} 29... f6 {[%clk 0:01:49.4]} 30. Qxd5+ {[%clk 0:03:05.9]}
30... Nd7 {[%clk 0:01:42.1]} 31. Qg8+ {[%clk 0:03:03.9]} 1-0

[Event "Live Chess"]
[Site "Chess.com"]
[Date "2023.05.21"]
[Round "-"]
[White "DoYouLikeCurry"]
[Black "ossie57"]
[Result "1/2-1/2"]
[WhiteElo "1439"]
[BlackElo "1890"]
[TimeControl "300"]
[EndTime "4:56:35 PDT"]
[Termination "Game drawn by agreement"]

1. e4 {[%clk 0:04:57.6]} 1... d6 {[%clk 0:04:57.7]} 2. d4 {[%clk 0:04:53.7]}
2... Nf6 {[%clk 0:04:56.5]} 3. Nc3 {[%clk 0:04:52.1]} 3... Nbd7 {[%clk
0:04:55.2]} 4. f4 {[%clk 0:04:51.3]} 4... e5 {[%clk 0:04:49.2]} 5. fxe5 {[%clk
0:04:47.6]} 5... dxe5 {[%clk 0:04:48.4]} 6. dxe5 {[%clk 0:04:28.4]} 6... Nxe5
{[%clk 0:04:48.3]} 7. Qxd8+ {[%clk 0:04:27.6]} 7... Kxd8 {[%clk 0:04:46]} 8. Bg5
{[%clk 0:04:27.2]} 8... Be7 {[%clk 0:04:41.6]} 9. O-O-O+ {[%clk 0:04:26.1]} 9...
Ke8 {[%clk 0:04:36.8]} 10. Nf3 {[%clk 0:04:16.2]} 10... Nxf3 {[%clk 0:04:27]}
11. gxf3 {[%clk 0:04:14]} 11... c6 {[%clk 0:04:26.5]} 12. Bxf6 {[%clk
0:04:07.8]} 12... Bxf6 {[%clk 0:04:24.8]} 13. Rg1 {[%clk 0:04:03.4]} 13... g6
{[%clk 0:04:16.5]} 14. Bc4 {[%clk 0:03:31.4]} 14... Be5 {[%clk 0:04:05.6]} 15.
h4 {[%clk 0:03:17.4]} 15... Bf4+ {[%clk 0:04:03.5]} 16. Kb1 {[%clk 0:03:13.6]}
16... b5 {[%clk 0:03:54.8]} 17. Bb3 {[%clk 0:03:08.3]} 17... a5 {[%clk
0:03:53.4]} 18. a3 {[%clk 0:03:06.8]} 18... h5 {[%clk 0:03:42.8]} 19. Rd3 {[%clk
0:02:58.9]} 19... b4 {[%clk 0:03:24.2]} 20. Ne2 {[%clk 0:02:54.4]} 20... Bc7
{[%clk 0:03:12.3]} 21. Rgd1 {[%clk 0:02:48.8]} 21... bxa3 {[%clk 0:03:09.5]} 22.
Ba4 {[%clk 0:02:44.8]} 22... Bb7 {[%clk 0:02:49.6]} 23. Rxa3 {[%clk 0:02:42.7]}
23... Rd8 {[%clk 0:02:42.9]} 24. Nd4 {[%clk 0:02:36.7]} 24... Ke7 {[%clk
0:02:23.9]} 25. Bxc6 {[%clk 0:02:23]} 25... Rxd4 {[%clk 0:02:17.5]} 26. Rxd4
{[%clk 0:02:18.8]} 26... Bxc6 {[%clk 0:02:15.9]} 27. Rc4 {[%clk 0:02:17.7]}
27... Bd6 {[%clk 0:02:05.4]} 28. Rxc6 {[%clk 0:02:10.4]} 28... Bxa3 {[%clk
0:02:03.8]} 29. bxa3 {[%clk 0:02:08.4]} 1/2-1/2

[Event "Live Chess"]
[Site "Chess.com"]
[Date "2023.05.21"]
[Round "-"]
[White "jumush"]
[Black "Brooms1989"]
[Result "1/2-1/2"]
[WhiteElo "1739"]
[BlackElo "1145"]
[TimeControl "300"]
[EndTime "4:56:41 PDT"]
[Termination "Game drawn by repetition"]

1. e4 {[%clk 0:04:52.9]} 1... e5 {[%clk 0:04:59]} 2. Nc3 {[%clk 0:04:51.1]} 2...
Nf6 {[%clk 0:04:57.3]} 3. Bc4 {[%clk 0:04:49.4]} 3... Bc5 {[%clk 0:04:53.9]} 4.
f4 {[%clk 0:04:46.3]} 4... d6 {[%clk 0:04:48.6]} 5. Nf3 {[%clk 0:04:44.1]} 5...
O-O {[%clk 0:04:46.9]} 6. d3 {[%clk 0:04:42.7]} 6... Ng4 {[%clk 0:04:43.1]} 7.
Qe2 {[%clk 0:04:38.8]} 7... Bf2+ {[%clk 0:04:31]} 8. Kd1 {[%clk 0:04:36.6]} 8...
Bb6 {[%clk 0:04:29.3]} 9. Rf1 {[%clk 0:04:31.7]} 9... Nc6 {[%clk 0:04:24.9]} 10.
h3 {[%clk 0:04:29.2]} 10... Nd4 {[%clk 0:04:22.8]} 11. Nxd4 {[%clk 0:04:27]}
11... exd4 {[%clk 0:04:18.7]} 12. Nd5 {[%clk 0:04:24]} 12... Ne3+ {[%clk
0:04:15.2]} 13. Nxe3 {[%clk 0:04:21.6]} 13... dxe3 {[%clk 0:04:15.1]} 14. Bxe3
{[%clk 0:04:19.9]} 14... Bxe3 {[%clk 0:04:08.7]} 15. Qxe3 {[%clk 0:04:18.2]}
15... Bd7 {[%clk 0:04:04.8]} 16. c3 {[%clk 0:04:16.5]} 16... b5 {[%clk
0:04:01.9]} 17. Bb3 {[%clk 0:04:14.6]} 17... a5 {[%clk 0:03:57.3]} 18. a4 {[%clk
0:04:12.7]} 18... bxa4 {[%clk 0:03:49.7]} 19. Bxa4 {[%clk 0:04:10.7]} 19...
Bxa4+ {[%clk 0:03:47.8]} 20. Rxa4 {[%clk 0:04:08.9]} 20... Re8 {[%clk
0:03:47.3]} 21. Kc2 {[%clk 0:04:06.9]} 21... Qd7 {[%clk 0:03:43]} 22. Rfa1
{[%clk 0:04:04.7]} 22... d5 {[%clk 0:03:38.1]} 23. Rxa5 {[%clk 0:03:48.1]} 23...
Rxa5 {[%clk 0:03:31.7]} 24. Rxa5 {[%clk 0:03:46.1]} 24... dxe4 {[%clk
0:03:28.8]} 25. dxe4 {[%clk 0:03:44.4]} 25... Rd8 {[%clk 0:03:23.8]} 26. Rd5
{[%clk 0:03:42.6]} 26... Qa4+ {[%clk 0:03:22]} 27. Kd2 {[%clk 0:03:34.8]} 27...
Rxd5+ {[%clk 0:03:16.3]} 28. exd5 {[%clk 0:03:33.1]} 28... h6 {[%clk 0:03:12.6]}
29. g4 {[%clk 0:03:30.6]} 29... Qb3 {[%clk 0:03:10.4]} 30. Kc1 {[%clk
0:03:25.5]} 30... Qxd5 {[%clk 0:03:02.8]} 31. f5 {[%clk 0:03:15.7]} 31... Qh1+
{[%clk 0:02:57.1]} 32. Kc2 {[%clk 0:03:14]} 32... Qh2+ {[%clk 0:02:56.2]} 33.
Kb3 {[%clk 0:03:09.9]} 33... Qd6 {[%clk 0:02:51.2]} 34. Qd4 {[%clk 0:03:04.8]}
34... Qa6 {[%clk 0:02:42.6]} 35. Qd8+ {[%clk 0:02:59.2]} 35... Kh7 {[%clk
0:02:41.2]} 36. Qxc7 {[%clk 0:02:57.8]} 36... Qb5+ {[%clk 0:02:39.6]} 37. Ka2
{[%clk 0:02:54]} 37... Qa6+ {[%clk 0:02:37.4]} 38. Kb1 {[%clk 0:02:48.1]} 38...
Qf1+ {[%clk 0:02:35.9]} 39. Kc2 {[%clk 0:02:46.7]} 39... Qe2+ {[%clk 0:02:34.9]}
40. Kb3 {[%clk 0:02:44.7]} 40... Qb5+ {[%clk 0:02:32.9]} 41. Kc2 {[%clk
0:02:43.4]} 41... Qe2+ {[%clk 0:02:31.4]} 42. Kb3 {[%clk 0:02:42.2]} 42... Qb5+
{[%clk 0:02:30.3]} 1/2-1/2

[Event "Live Chess"]
[Site "Chess.com"]
[Date "2023.05.21"]
[Round "-"]
[White "YrrriKharkiv"]
[Black "zdanevych"]
[Result "1-0"]
[WhiteElo "2068"]
[BlackElo "1548"]
[TimeControl "300"]
[EndTime "4:56:49 PDT"]
[Termination "YrrriKharkiv won by resignation"]

1. d4 {[%clk 0:04:59]} 1... d5 {[%clk 0:04:59.1]} 2. Nf3 {[%clk 0:04:57.9]} 2...
c5 {[%clk 0:04:58.1]} 3. c4 {[%clk 0:04:57.6]} 3... e6 {[%clk 0:04:55.8]} 4.
cxd5 {[%clk 0:04:56.5]} 4... exd5 {[%clk 0:04:55.2]} 5. Nc3 {[%clk 0:04:53.4]}
5... cxd4 {[%clk 0:04:53.6]} 6. Nxd4 {[%clk 0:04:51]} 6... Nc6 {[%clk
0:04:52.9]} 7. g3 {[%clk 0:04:46]} 7... Nf6 {[%clk 0:04:47]} 8. Bg2 {[%clk
0:04:44.4]} 8... Bg4 {[%clk 0:04:45.8]} 9. O-O {[%clk 0:04:40.1]} 9... Bc5
{[%clk 0:04:39.3]} 10. Nb3 {[%clk 0:04:36.9]} 10... Bb6 {[%clk 0:04:33.6]} 11.
Bg5 {[%clk 0:04:36.3]} 11... O-O {[%clk 0:04:27.2]} 12. Nxd5 {[%clk 0:04:29.8]}
12... Qd6 {[%clk 0:04:17.7]} 13. Nxf6+ {[%clk 0:04:26.3]} 1-0

[Event "Live Chess"]
[Site "Chess.com"]
[Date "2023.05.21"]
[Round "-"]
[White "chessfiction"]
[Black "GMHarry-youtube"]
[Result "1-0"]
[WhiteElo "2311"]
[BlackElo "2027"]
[TimeControl "300"]
[EndTime "4:56:50 PDT"]
[Termination "chessfiction won by resignation"]

1. e4 {[%clk 0:04:59.1]} 1... c5 {[%clk 0:04:58]} 2. d4 {[%clk 0:04:59]} 2...
cxd4 {[%clk 0:04:57]} 3. c3 {[%clk 0:04:58.9]} 3... dxc3 {[%clk 0:04:56.7]} 4.
Nxc3 {[%clk 0:04:58.8]} 4... Nc6 {[%clk 0:04:55]} 5. Bg5 {[%clk 0:04:58]} 5...
e6 {[%clk 0:04:54.9]} 6. Bxd8 {[%clk 0:04:56.7]} 6... Kxd8 {[%clk 0:04:44.8]} 7.
Nf3 {[%clk 0:04:54.6]} 7... Bb4 {[%clk 0:04:43.8]} 8. Ng5 {[%clk 0:04:53]} 8...
Ke8 {[%clk 0:04:42]} 9. Bb5 {[%clk 0:04:50.2]} 9... Nge7 {[%clk 0:04:32.3]} 10.
O-O {[%clk 0:04:46.6]} 10... a6 {[%clk 0:04:31]} 11. Bxc6 {[%clk 0:04:43.4]}
11... Nxc6 {[%clk 0:04:29.7]} 1-0

[Event "Live Chess"]
[Site "Chess.com"]
[Date "2023.05.21"]
[Round "-"]
[White "fazzik"]
[Black "LiamBellwood"]
[Result "0-1"]
[WhiteElo "612"]
[BlackElo "1909"]
[TimeControl "300"]
[EndTime "4:56:58 PDT"]
[Termination "LiamBellwood won by resignation"]

1. Nc3 {[%clk 0:04:57.7]} 1... e6 {[%clk 0:04:59.9]} 2. e4 {[%clk 0:04:57.3]}
2... d5 {[%clk 0:04:59.4]} 3. Bd3 {[%clk 0:04:56.9]} 3... Nf6 {[%clk 0:04:58.4]}
4. f3 {[%clk 0:04:55.7]} 4... d4 {[%clk 0:04:57]} 5. Nce2 {[%clk 0:04:52.2]}
5... c5 {[%clk 0:04:56.7]} 6. c3 {[%clk 0:04:51]} 6... Nc6 {[%clk 0:04:56.4]} 7.
Qa4 {[%clk 0:04:36.2]} 7... dxc3 {[%clk 0:04:51.2]} 8. Nxc3 {[%clk 0:04:30.9]}
8... Qxd3 {[%clk 0:04:49.8]} 9. b3 {[%clk 0:04:17.7]} 9... Bd7 {[%clk
0:04:46.9]} 10. Ba3 {[%clk 0:04:10.1]} 10... Nd4 {[%clk 0:04:43.9]} 11. Qa5
{[%clk 0:04:04]} 11... b6 {[%clk 0:04:32.7]} 0-1

[Event "Live Chess"]
[Site "Chess.com"]
[Date "2023.05.21"]
[Round "-"]
[White "domrobson"]
[Black "friarnator"]
[Result "0-1"]
[WhiteElo "1707"]
[BlackElo "2009"]
[TimeControl "300"]
[EndTime "4:57:04 PDT"]
[Termination "friarnator won by resignation"]

1. d4 {[%clk 0:04:59]} 1... Nf6 {[%clk 0:04:57.8]} 2. c4 {[%clk 0:04:58.7]} 2...
e5 {[%clk 0:04:56.5]} 3. dxe5 {[%clk 0:04:57.7]} 3... Ng4 {[%clk 0:04:56]} 4.
Bf4 {[%clk 0:04:56.5]} 4... Nc6 {[%clk 0:04:55.2]} 5. Nf3 {[%clk 0:04:51.6]}
5... Bb4+ {[%clk 0:04:52.8]} 6. Nbd2 {[%clk 0:04:50]} 6... Qe7 {[%clk
0:04:52.1]} 7. e3 {[%clk 0:04:49.1]} 7... Ngxe5 {[%clk 0:04:51]} 8. Nxe5 {[%clk
0:04:48.4]} 8... Nxe5 {[%clk 0:04:50.9]} 9. Be2 {[%clk 0:04:47.5]} 9... d6
{[%clk 0:04:45.2]} 10. O-O {[%clk 0:04:46.5]} 10... Bxd2 {[%clk 0:04:44.5]} 11.
Qxd2 {[%clk 0:04:45.4]} 11... O-O {[%clk 0:04:44.4]} 12. a3 {[%clk 0:04:44.1]}
12... f6 {[%clk 0:04:41.3]} 13. b4 {[%clk 0:04:39.1]} 13... Be6 {[%clk
0:04:39.4]} 14. Rac1 {[%clk 0:04:35.4]} 14... Kh8 {[%clk 0:04:36.5]} 15. c5
{[%clk 0:04:34.3]} 15... d5 {[%clk 0:04:35.7]} 16. Qd4 {[%clk 0:04:23.8]} 16...
Ng6 {[%clk 0:04:30.4]} 17. Bg3 {[%clk 0:04:21.7]} 17... Rfe8 {[%clk 0:04:22.7]}
18. Rfd1 {[%clk 0:04:19.7]} 18... c6 {[%clk 0:04:21.3]} 19. Bd6 {[%clk
0:04:17.5]} 19... Qf7 {[%clk 0:04:19.1]} 20. e4 {[%clk 0:04:10.8]} 20... Ne7
{[%clk 0:04:16.1]} 21. exd5 {[%clk 0:03:58.4]} 21... Bxd5 {[%clk 0:03:47.9]} 22.
Bc4 {[%clk 0:03:52.4]} 22... Bxc4 {[%clk 0:03:27.3]} 23. Qxc4 {[%clk 0:03:47]}
23... Qxc4 {[%clk 0:03:24.7]} 24. Rxc4 {[%clk 0:03:45.3]} 24... Nd5 {[%clk
0:03:23.6]} 25. Rcc1 {[%clk 0:03:40.1]} 25... a6 {[%clk 0:03:22.6]} 26. Rb1
{[%clk 0:03:36.5]} 26... Nc3 {[%clk 0:03:20.2]} 0-1

[Event "Live Chess"]
[Site "Chess.com"]
[Date "2023.05.21"]
[Round "-"]
[White "gmnorfolk"]
[Black "DC_NC_11"]
[Result "1-0"]
[WhiteElo "2128"]
[BlackElo "1514"]
[TimeControl "300"]
[EndTime "4:57:04 PDT"]
[Termination "gmnorfolk won by resignation"]

1. d4 {[%clk 0:04:58.6]} 1... Nf6 {[%clk 0:04:58]} 2. c4 {[%clk 0:04:57.1]} 2...
e6 {[%clk 0:04:57.1]} 3. Nc3 {[%clk 0:04:54.9]} 3... Be7 {[%clk 0:04:56.2]} 4.
e4 {[%clk 0:04:51.7]} 4... c6 {[%clk 0:04:48.7]} 5. e5 {[%clk 0:04:49.3]} 5...
Ng8 {[%clk 0:04:46.6]} 6. f4 {[%clk 0:04:47]} 6... d6 {[%clk 0:04:37.1]} 7. Nf3
{[%clk 0:04:44.6]} 7... d5 {[%clk 0:04:35.3]} 8. Bd3 {[%clk 0:04:37.8]} 8... a6
{[%clk 0:04:24.4]} 9. O-O {[%clk 0:04:35.3]} 9... b5 {[%clk 0:04:22.9]} 10. cxd5
{[%clk 0:04:31.2]} 10... cxd5 {[%clk 0:04:19.9]} 11. a4 {[%clk 0:04:31.1]} 11...
bxa4 {[%clk 0:04:14.7]} 12. Nxa4 {[%clk 0:04:27.1]} 12... Bb7 {[%clk 0:04:14.2]}
13. Bd2 {[%clk 0:04:24.3]} 13... Nc6 {[%clk 0:04:13.2]} 14. Qb3 {[%clk 0:04:21]}
14... a5 {[%clk 0:04:08.4]} 15. Qxb7 {[%clk 0:04:16.6]} 15... Qc8 {[%clk
0:03:59]} 16. Qxc8+ {[%clk 0:04:14.9]} 16... Rxc8 {[%clk 0:03:58.9]} 17. Bb5
{[%clk 0:04:13.9]} 17... Bb4 {[%clk 0:03:56.5]} 18. Bxb4 {[%clk 0:04:12.2]}
18... axb4 {[%clk 0:03:56.4]} 19. Rfc1 {[%clk 0:04:10.9]} 19... Ne7 {[%clk
0:03:54]} 20. Nb6 {[%clk 0:04:07.6]} 20... Rc7 {[%clk 0:03:44.5]} 21. Ra8+
{[%clk 0:04:04.1]} 21... Nc8 {[%clk 0:03:37.9]} 22. Rxc8+ {[%clk 0:04:01.2]}
22... Rxc8 {[%clk 0:03:35.8]} 23. Nxc8 {[%clk 0:04:00.5]} 23... O-O {[%clk
0:03:35.1]} 24. Rxc6 {[%clk 0:03:58.1]} 24... f6 {[%clk 0:03:32.2]} 25. exf6
{[%clk 0:03:54.8]} 25... gxf6 {[%clk 0:03:32.1]} 26. Nd6 {[%clk 0:03:51.2]}
26... Kg7 {[%clk 0:03:30.1]} 27. g4 {[%clk 0:03:47.8]} 27... h6 {[%clk 0:03:28]}
28. Rc7+ {[%clk 0:03:44.7]} 28... Kg6 {[%clk 0:03:23.1]} 29. Bd3+ {[%clk
0:03:44.1]} 29... f5 {[%clk 0:03:20.6]} 30. Nh4+ {[%clk 0:03:38.9]} 1-0

[Event "Live Chess"]
[Site "Chess.com"]
[Date "2023.05.21"]
[Round "-"]
[White "Shepherds_Pie"]
[Black "Ferrarifan27"]
[Result "0-1"]
[WhiteElo "1947"]
[BlackElo "2083"]
[TimeControl "300"]
[EndTime "4:57:11 PDT"]
[Termination "Ferrarifan27 won by resignation"]

1. c4 {[%clk 0:04:58.4]} 1... Nf6 {[%clk 0:04:58.1]} 2. Nc3 {[%clk 0:04:57.3]}
2... e5 {[%clk 0:04:56.9]} 3. Nf3 {[%clk 0:04:54.6]} 3... Nc6 {[%clk 0:04:54.8]}
4. e3 {[%clk 0:04:53.1]} 4... Bc5 {[%clk 0:04:45.3]} 5. Qc2 {[%clk 0:04:50.9]}
5... O-O {[%clk 0:04:43.6]} 6. a3 {[%clk 0:04:45.8]} 6... e4 {[%clk 0:04:41.8]}
7. Nxe4 {[%clk 0:04:40.4]} 7... Nxe4 {[%clk 0:04:39.7]} 8. Qxe4 {[%clk
0:04:39.1]} 8... Re8 {[%clk 0:04:39.3]} 9. Qd5 {[%clk 0:04:30.6]} 9... Be7
{[%clk 0:04:37.2]} 10. Qh5 {[%clk 0:04:28.1]} 10... d6 {[%clk 0:04:32.6]} 11.
Bd3 {[%clk 0:04:26.4]} 11... g6 {[%clk 0:04:30.3]} 12. Qh6 {[%clk 0:04:20.6]}
12... Bf6 {[%clk 0:04:27.4]} 13. h4 {[%clk 0:04:17.1]} 13... Bg4 {[%clk
0:04:22.4]} 14. Ng5 {[%clk 0:04:07.1]} 14... Bxg5 {[%clk 0:04:07.8]} 15. hxg5
{[%clk 0:04:05]} 15... Ne5 {[%clk 0:04:01.7]} 16. Qxh7+ {[%clk 0:04:01.3]} 16...
Kf8 {[%clk 0:04:00.9]} 17. Qh8+ {[%clk 0:03:47]} 17... Ke7 {[%clk 0:03:59.5]}
18. Qf6+ {[%clk 0:03:45.8]} 18... Kd7 {[%clk 0:03:58.7]} 19. Be4 {[%clk
0:03:38.5]} 19... Qxf6 {[%clk 0:03:51.1]} 20. gxf6 {[%clk 0:03:36.2]} 20... Nxc4
{[%clk 0:03:40.8]} 21. Bd5 {[%clk 0:03:29.9]} 21... Be6 {[%clk 0:03:33.8]} 22.
Bxc4 {[%clk 0:03:19.2]} 22... Bxc4 {[%clk 0:03:32.2]} 23. b4 {[%clk 0:03:18.1]}
23... Rh8 {[%clk 0:03:27]} 24. Rxh8 {[%clk 0:03:07]} 24... Rxh8 {[%clk
0:03:26.9]} 25. f4 {[%clk 0:03:04.9]} 25... Rh1+ {[%clk 0:03:23.2]} 26. Kf2
{[%clk 0:03:03.9]} 26... Rd1 {[%clk 0:03:21.2]} 27. d4 {[%clk 0:02:55.1]} 27...
Ke6 {[%clk 0:03:16.7]} 28. Kg3 {[%clk 0:02:53.5]} 28... Kxf6 {[%clk 0:03:12.9]}
29. Bb2 {[%clk 0:02:51.8]} 29... Rd3 {[%clk 0:03:06.9]} 30. Re1 {[%clk
0:02:37.8]} 30... Rb3 {[%clk 0:03:01.5]} 31. Ba1 {[%clk 0:02:33.4]} 31... Rxa3
{[%clk 0:02:58.3]} 32. Kh2 {[%clk 0:02:32.1]} 32... Rb3 {[%clk 0:02:55.2]} 33.
e4 {[%clk 0:02:30.8]} 33... Rxb4 {[%clk 0:02:50.9]} 34. d5+ {[%clk 0:02:27.6]}
34... Ke7 {[%clk 0:02:47.3]} 35. e5 {[%clk 0:02:16.2]} 35... Bxd5 {[%clk
0:02:41.5]} 36. exd6+ {[%clk 0:02:15.2]} 36... Kxd6 {[%clk 0:02:40.4]} 37. Be5+
{[%clk 0:02:13.1]} 37... Kd7 {[%clk 0:02:39.1]} 38. Bf6 {[%clk 0:02:02.1]} 38...
Be6 {[%clk 0:02:36.6]} 39. Rd1+ {[%clk 0:01:58.9]} 39... Kc6 {[%clk 0:02:35.7]}
40. g3 {[%clk 0:01:53.2]} 40... a5 {[%clk 0:02:32.6]} 41. Rc1+ {[%clk
0:01:50.7]} 41... Rc4 {[%clk 0:02:31]} 42. Ra1 {[%clk 0:01:48.1]} 42... a4
{[%clk 0:02:29.7]} 43. Kg2 {[%clk 0:01:47.2]} 43... b5 {[%clk 0:02:28]} 44. Kf2
{[%clk 0:01:46.1]} 44... Kb6 {[%clk 0:02:22.1]} 45. Ke3 {[%clk 0:01:44.1]} 45...
c5 {[%clk 0:02:21]} 46. Kd3 {[%clk 0:01:40.8]} 46... Rb4 {[%clk 0:02:17.1]} 47.
Bd8+ {[%clk 0:01:36.4]} 47... Kc6 {[%clk 0:02:14.6]} 48. Rc1 {[%clk 0:01:35.1]}
48... Rb3+ {[%clk 0:02:12.7]} 49. Kd2 {[%clk 0:01:33.7]} 49... Rxg3 {[%clk
0:02:11.2]} 50. Be7 {[%clk 0:01:32.2]} 50... c4 {[%clk 0:02:06.9]} 0-1

[Event "Live Chess"]
[Site "Chess.com"]
[Date "2023.05.21"]
[Round "-"]
[White "luckywookie"]
[Black "ranvir123"]
[Result "0-1"]
[WhiteElo "767"]
[BlackElo "978"]
[TimeControl "300"]
[EndTime "4:57:12 PDT"]
[Termination "ranvir123 won by checkmate"]

1. e4 {[%clk 0:04:58.4]} 1... e5 {[%clk 0:04:59.3]} 2. Nf3 {[%clk 0:04:55.4]}
2... Nc6 {[%clk 0:04:58.2]} 3. c3 {[%clk 0:04:52.6]} 3... d5 {[%clk 0:04:48.2]}
4. exd5 {[%clk 0:04:47.8]} 4... Qxd5 {[%clk 0:04:46.4]} 5. d3 {[%clk 0:04:38.5]}
5... Bg4 {[%clk 0:04:42.4]} 6. Be2 {[%clk 0:04:36.3]} 6... Nf6 {[%clk
0:04:39.3]} 7. c4 {[%clk 0:04:30.9]} 7... Qd7 {[%clk 0:04:29.8]} 8. Nxe5 {[%clk
0:03:52.9]} 8... Nxe5 {[%clk 0:04:16.1]} 9. d4 {[%clk 0:03:45.9]} 9... Bxe2
{[%clk 0:04:12.4]} 10. Qxe2 {[%clk 0:03:43.8]} 10... Qxd4 {[%clk 0:04:07.2]} 11.
O-O {[%clk 0:03:42]} 11... O-O-O {[%clk 0:04:00.2]} 12. Rd1 {[%clk 0:03:40.8]}
12... Qxd1+ {[%clk 0:03:56.9]} 13. Qxd1 {[%clk 0:03:39]} 13... Rxd1# {[%clk
0:03:56.8]} 0-1

[Event "Live Chess"]
[Site "Chess.com"]
[Date "2023.05.21"]
[Round "-"]
[White "defenderalist"]
[Black "Duke_of_Bebington"]
[Result "0-1"]
[WhiteElo "1661"]
[BlackElo "1584"]
[TimeControl "300"]
[EndTime "4:57:25 PDT"]
[Termination "Duke_of_Bebington won by resignation"]

1. e4 {[%clk 0:04:55.6]} 1... e5 {[%clk 0:04:59]} 2. Nf3 {[%clk 0:04:53.9]} 2...
Nf6 {[%clk 0:04:57]} 3. Nc3 {[%clk 0:04:52.3]} 3... Nc6 {[%clk 0:04:54.7]} 4.
Bc4 {[%clk 0:04:49.7]} 4... Nxe4 {[%clk 0:04:52.5]} 5. Nxe4 {[%clk 0:04:48.4]}
5... d5 {[%clk 0:04:50.3]} 6. Bb5 {[%clk 0:04:42.2]} 6... dxe4 {[%clk
0:04:38.8]} 7. Nxe5 {[%clk 0:04:41.1]} 7... Bd7 {[%clk 0:04:20.4]} 8. Nxd7
{[%clk 0:04:34.8]} 8... Qxd7 {[%clk 0:04:18.4]} 9. Qe2 {[%clk 0:04:30.7]} 9...
f5 {[%clk 0:04:16.2]} 10. O-O {[%clk 0:04:29.1]} 10... O-O-O {[%clk 0:04:10]}
11. d3 {[%clk 0:04:21.4]} 11... exd3 {[%clk 0:04:08.1]} 12. Bxd3 {[%clk
0:04:17.4]} 12... g6 {[%clk 0:04:05.4]} 13. a3 {[%clk 0:04:13]} 13... Bg7 {[%clk
0:04:03.9]} 14. c3 {[%clk 0:04:09]} 14... Rhe8 {[%clk 0:04:01.4]} 15. Be3 {[%clk
0:03:54.7]} 15... Qxd3 {[%clk 0:03:58.4]} 16. Qf3 {[%clk 0:03:48.3]} 16... Ne5
{[%clk 0:03:46.5]} 17. Qf4 {[%clk 0:03:34.2]} 17... Nc4 {[%clk 0:03:37.9]} 18.
b3 {[%clk 0:03:22.1]} 18... Nxe3 {[%clk 0:03:35.6]} 19. fxe3 {[%clk 0:03:21.3]}
19... Qxe3+ {[%clk 0:03:34.5]} 0-1

[Event "Live Chess"]
[Site "Chess.com"]
[Date "2023.05.21"]
[Round "-"]
[White "Nakula1000"]
[Black "JanMur7"]
[Result "1-0"]
[WhiteElo "873"]
[BlackElo "1960"]
[TimeControl "300"]
[EndTime "4:57:37 PDT"]
[Termination "Nakula1000 won by resignation"]

1. e4 {[%clk 0:04:49.2]} 1... e5 {[%clk 0:04:57.9]} 2. Ke2 {[%clk 0:04:39.9]}
2... Qh4 {[%clk 0:04:54.2]} 3. d3 {[%clk 0:04:37.2]} 3... Nf6 {[%clk 0:04:50.9]}
4. Nf3 {[%clk 0:04:32.1]} 4... Qh5 {[%clk 0:04:48.6]} 5. g4 {[%clk 0:04:22.5]}
5... Qxg4 {[%clk 0:04:42.5]} 6. Rg1 {[%clk 0:04:20.7]} 6... Qe6 {[%clk
0:04:39.1]} 7. c3 {[%clk 0:04:15.8]} 7... h6 {[%clk 0:04:28.3]} 8. c4 {[%clk
0:04:13.3]} 8... Nc6 {[%clk 0:04:20.6]} 9. Nc3 {[%clk 0:04:09.5]} 9... Nd4+
{[%clk 0:03:55.2]} 10. Ke1 {[%clk 0:04:05]} 10... Bb4 {[%clk 0:03:39]} 11. Rxg7
{[%clk 0:04:01.7]} 11... Rg8 {[%clk 0:03:02.5]} 12. Bxh6 {[%clk 0:03:58.7]}
12... Rxg7 {[%clk 0:02:38.3]} 13. Bxg7 {[%clk 0:03:55.8]} 13... Nh5 {[%clk
0:02:30.7]} 14. Nxd4 {[%clk 0:03:52.7]} 14... exd4 {[%clk 0:02:21.2]} 15. Qxh5
{[%clk 0:03:48.4]} 15... d6 {[%clk 0:01:44.7]} 16. Qh8+ {[%clk 0:03:44.6]} 16...
Kd7 {[%clk 0:01:43.1]} 17. Bh3 {[%clk 0:03:42.2]} 1-0